[Event "*** Titled Tuesday 3|2 Blitz"]
[Site "Chess.com"]
[Date "2017.06.06"]
[Round "2"]
[White "tihanaivekovic223"]
[Black "Shivagami"]
[Result "0-1"]
[WhiteElo "1985"]
[BlackElo "1997"]
[TimeControl "180+2"]
[EndTime "14:14:39 PDT"]
[Termination "Shivagami won by checkmate"]

1. e4 {[%clk 0:03:02]} 1... Nc6 {[%clk 0:02:58]} 2. d4 {[%clk 0:03:01.8]} 2...
e5 {[%clk 0:02:59]} 3. Nf3 {[%clk 0:03:02.3]} 3... exd4 {[%clk 0:02:58]} 4. Bc4
{[%clk 0:03:03.7]} 4... Nf6 {[%clk 0:02:56.7]} 5. O-O {[%clk 0:03:04.8]} 5... d5
{[%clk 0:02:47]} 6. exd5 {[%clk 0:02:50.1]} 6... Nxd5 {[%clk 0:02:46.7]} 7. Re1+
{[%clk 0:02:50.9]} 7... Be7 {[%clk 0:02:38]} 8. Bxd5 {[%clk 0:02:43.7]} 8...
Qxd5 {[%clk 0:02:35.5]} 9. Nc3 {[%clk 0:02:45.2]} 9... Qd8 {[%clk 0:02:24.9]}
10. Nb5 {[%clk 0:02:29.7]} 10... Bg4 {[%clk 0:02:12.4]} 11. h3 {[%clk
0:02:22.2]} 11... Bxf3 {[%clk 0:02:11]} 12. Qxf3 {[%clk 0:02:24.1]} 12... O-O
{[%clk 0:02:11.6]} 13. Qg3 {[%clk 0:02:17.3]} 13... Rc8 {[%clk 0:01:34.4]} 14.
Bh6 {[%clk 0:02:11.8]} 14... Bf6 {[%clk 0:01:34.7]} 15. Rad1 {[%clk 0:02:13.2]}
15... a6 {[%clk 0:01:30]} 16. Na3 {[%clk 0:02:09.2]} 16... Qd5 {[%clk
0:01:20.4]} 17. c4 {[%clk 0:02:01.1]} 17... Qf5 {[%clk 0:01:12.8]} 18. Bf4
{[%clk 0:01:59.5]} 18... Qg6 {[%clk 0:01:01.4]} 19. Bxc7 {[%clk 0:01:56.9]}
19... Qxg3 {[%clk 0:01:01]} 20. Bxg3 {[%clk 0:01:58.8]} 20... Rfe8 {[%clk
0:00:57.8]} 21. c5 {[%clk 0:01:48.3]} 21... Nb4 {[%clk 0:00:42.2]} 22. Nc4
{[%clk 0:01:38.6]} 22... Rxe1+ {[%clk 0:00:21.2]} 23. Rxe1 {[%clk 0:01:40.5]}
23... h6 {[%clk 0:00:18.5]} 24. Nd6 {[%clk 0:01:17.4]} 24... Rxc5 {[%clk
0:00:17.8]} 25. Re8+ {[%clk 0:01:17.3]} 25... Kh7 {[%clk 0:00:17.5]} 26. Nxf7
{[%clk 0:01:18.6]} 26... Kg6 {[%clk 0:00:16.8]} 27. Nh8+ {[%clk 0:01:11.2]}
27... Kh7 {[%clk 0:00:15.3]} 28. Nf7 {[%clk 0:01:09.8]} 28... d3 {[%clk
0:00:15.4]} 29. Bf4 {[%clk 0:00:52]} 29... Bxb2 {[%clk 0:00:15.3]} 30. h4 {[%clk
0:00:47.3]} 30... Kg6 {[%clk 0:00:13.9]} 31. Nd6 {[%clk 0:00:41.2]} 31... Bc1
{[%clk 0:00:11.9]} 32. Re6+ {[%clk 0:00:37.9]} 32... Kh7 {[%clk 0:00:11.2]} 33.
Ne4 {[%clk 0:00:36.2]} 33... Rc4 {[%clk 0:00:10.4]} 34. Bxc1 {[%clk 0:00:22.8]}
34... Rxc1+ {[%clk 0:00:12.3]} 35. Kh2 {[%clk 0:00:24.7]} 35... Rc2 {[%clk
0:00:13.1]} 36. Rd6 {[%clk 0:00:20.1]} 36... Rxa2 {[%clk 0:00:10.9]} 37. Rd7
{[%clk 0:00:20.2]} 37... Re2 {[%clk 0:00:11.5]} 38. f3 {[%clk 0:00:19.9]} 38...
a5 {[%clk 0:00:10.1]} 39. h5 {[%clk 0:00:20.7]} 39... Kg8 {[%clk 0:00:10.3]} 40.
Rxb7 {[%clk 0:00:19.8]} 40... d2 {[%clk 0:00:10.1]} 41. Rb8+ {[%clk 0:00:20.4]}
41... Kf7 {[%clk 0:00:10.5]} 42. Rb7+ {[%clk 0:00:19.5]} 42... Ke6 {[%clk
0:00:11.1]} 43. Rb6+ {[%clk 0:00:14.3]} 43... Kd5 {[%clk 0:00:11.9]} 44. Rd6+
{[%clk 0:00:14.3]} 44... Kc4 {[%clk 0:00:11]} 45. Nxd2+ {[%clk 0:00:13.6]} 45...
Kc3 {[%clk 0:00:09.3]} 46. Ne4+ {[%clk 0:00:14.1]} 46... Kb2 {[%clk 0:00:09.7]}
47. Ra6 {[%clk 0:00:14.8]} 47... Re3 {[%clk 0:00:08.6]} 48. Rxa5 {[%clk
0:00:14.5]} 48... Re2 {[%clk 0:00:09.6]} 49. Rb5 {[%clk 0:00:14.5]} 49... Ka3
{[%clk 0:00:09]} 50. Kg3 {[%clk 0:00:12.6]} 50... Rc2 {[%clk 0:00:09.6]} 51. Rb7
{[%clk 0:00:11.2]} 51... Nd3 {[%clk 0:00:10.6]} 52. Rxg7 {[%clk 0:00:10.4]}
52... Ne1 {[%clk 0:00:11.5]} 53. Kh3 {[%clk 0:00:09.7]} 53... Re2 {[%clk
0:00:11.7]} 54. Rg6 {[%clk 0:00:09.7]} 54... Nd3 {[%clk 0:00:10.2]} 55. Nd6
{[%clk 0:00:09.9]} 55... Nf4+ {[%clk 0:00:10.8]} 56. Kg4 {[%clk 0:00:08.7]}
56... Nxg6 {[%clk 0:00:11.8]} 57. Nc4+ {[%clk 0:00:08.9]} 57... Kb4 {[%clk
0:00:11.5]} 58. hxg6 {[%clk 0:00:09.6]} 58... Kxc4 {[%clk 0:00:12.4]} 59. Kh5
{[%clk 0:00:11.5]} 59... Rxg2 {[%clk 0:00:13.3]} 60. Kxh6 {[%clk 0:00:12.5]}
60... Kd5 {[%clk 0:00:14.1]} 61. Kh7 {[%clk 0:00:13.1]} 61... Ke6 {[%clk
0:00:15]} 62. g7 {[%clk 0:00:12.6]} 62... Kf7 {[%clk 0:00:16.2]} 63. Kh8 {[%clk
0:00:11.6]} 63... Rxg7 {[%clk 0:00:16.7]} 64. f4 {[%clk 0:00:12.7]} 64... Rg4
{[%clk 0:00:16.9]} 65. f5 {[%clk 0:00:14]} 65... Rh4# {[%clk 0:00:17.9]} 0-1

[Event "*** Titled Tuesday 3|2 Blitz"]
[Site "Chess.com"]
[Date "2017.06.06"]
[Round "2"]
[White "ZEN-22"]
[Black "Ilja_Semjonovs"]
[Result "0-1"]
[WhiteElo "2377"]
[BlackElo "2235"]
[TimeControl "180+2"]
[EndTime "14:14:50 PDT"]
[Termination "Ilja_Semjonovs won by checkmate"]

1. e3 {[%clk 0:03:02]} 1... c5 {[%clk 0:02:55.7]} 2. Ne2 {[%clk 0:03:03.9]} 2...
Nf6 {[%clk 0:02:54.9]} 3. d4 {[%clk 0:03:05.8]} 3... cxd4 {[%clk 0:02:56.1]} 4.
Nxd4 {[%clk 0:03:06.2]} 4... e5 {[%clk 0:02:55.6]} 5. Nf3 {[%clk 0:03:07.1]}
5... Nc6 {[%clk 0:02:54.7]} 6. c4 {[%clk 0:03:07.3]} 6... d5 {[%clk 0:02:55.4]}
7. Nc3 {[%clk 0:03:07.8]} 7... d4 {[%clk 0:02:55.7]} 8. exd4 {[%clk 0:03:08.6]}
8... exd4 {[%clk 0:02:56.6]} 9. Nb5 {[%clk 0:03:10.5]} 9... Bc5 {[%clk
0:02:38.3]} 10. Bd3 {[%clk 0:03:08.2]} 10... a6 {[%clk 0:02:31.2]} 11. Qe2+
{[%clk 0:03:04.7]} 11... Be6 {[%clk 0:02:26.3]} 12. Na3 {[%clk 0:03:05.4]} 12...
O-O {[%clk 0:02:25.8]} 13. O-O {[%clk 0:03:06]} 13... Re8 {[%clk 0:02:24.9]} 14.
Qd1 {[%clk 0:02:51.4]} 14... Bg4 {[%clk 0:01:36.3]} 15. Bf4 {[%clk 0:02:47.5]}
15... Nh5 {[%clk 0:01:25.5]} 16. h3 {[%clk 0:02:40.6]} 16... Bxh3 {[%clk
0:00:48.8]} 17. Bg5 {[%clk 0:02:37.1]} 17... f6 {[%clk 0:00:48.1]} 18. Bd2
{[%clk 0:02:32.4]} 18... Bg4 {[%clk 0:00:46.2]} 19. Qb1 {[%clk 0:02:31.1]} 19...
Bxf3 {[%clk 0:00:41.8]} 20. Bxh7+ {[%clk 0:02:26.7]} 20... Kh8 {[%clk
0:00:42.9]} 21. gxf3 {[%clk 0:02:27.3]} 21... Ne5 {[%clk 0:00:39.9]} 22. Kg2
{[%clk 0:02:27.7]} 22... d3 {[%clk 0:00:32.4]} 23. Rh1 {[%clk 0:02:18.5]} 23...
Kxh7 {[%clk 0:00:24.6]} 24. Rxh5+ {[%clk 0:02:19]} 24... Kg8 {[%clk 0:00:26.5]}
25. Qh1 {[%clk 0:02:15.8]} 25... Qd4 {[%clk 0:00:24]} 26. Be3 {[%clk 0:02:13.5]}
26... Qd6 {[%clk 0:00:21.3]} 27. Bf4 {[%clk 0:02:09.8]} 27... Qc6 {[%clk
0:00:20.5]} 28. Bxe5 {[%clk 0:02:09.8]} 28... fxe5 {[%clk 0:00:19.2]} 29. Rd1
{[%clk 0:02:04.1]} 29... e4 {[%clk 0:00:13.5]} 30. Rh8+ {[%clk 0:02:03.7]} 30...
Kf7 {[%clk 0:00:14]} 31. Qh5+ {[%clk 0:02:05.1]} 31... Qg6+ {[%clk 0:00:14.9]}
32. Qxg6+ {[%clk 0:02:06.3]} 32... Kxg6 {[%clk 0:00:16.8]} 33. Rxe8 {[%clk
0:02:07.8]} 33... Rxe8 {[%clk 0:00:17.3]} 34. fxe4 {[%clk 0:02:09.7]} 34... Rxe4
{[%clk 0:00:17.9]} 35. Rxd3 {[%clk 0:02:10.8]} 35... Bxa3 {[%clk 0:00:17.9]} 36.
bxa3 {[%clk 0:02:05.1]} 36... Rxc4 {[%clk 0:00:19.8]} 37. Rg3+ {[%clk
0:02:06.7]} 37... Kh7 {[%clk 0:00:19.8]} 38. Rb3 {[%clk 0:02:08.6]} 38... b5
{[%clk 0:00:20.5]} 39. Rb4 {[%clk 0:02:06.2]} 39... Rc6 {[%clk 0:00:11]} 40. a4
{[%clk 0:02:06.5]} 40... bxa4 {[%clk 0:00:11.4]} 41. Rxa4 {[%clk 0:02:07]} 41...
Kg6 {[%clk 0:00:12.8]} 42. Kg3 {[%clk 0:02:07.7]} 42... Kf5 {[%clk 0:00:13.4]}
43. Ra5+ {[%clk 0:02:09.2]} 43... Ke4 {[%clk 0:00:13.8]} 44. f3+ {[%clk
0:02:09.9]} 44... Kd3 {[%clk 0:00:14.4]} 45. Ra3+ {[%clk 0:02:09.7]} 45... Kc2
{[%clk 0:00:14.9]} 46. Kf4 {[%clk 0:02:10.9]} 46... Kb2 {[%clk 0:00:15.8]} 47.
Ra5 {[%clk 0:02:12.3]} 47... Rf6+ {[%clk 0:00:16]} 48. Kg4 {[%clk 0:02:13]}
48... Kc2 {[%clk 0:00:17.1]} 49. f4 {[%clk 0:02:13.9]} 49... Kb2 {[%clk
0:00:17.5]} 50. f5 {[%clk 0:02:14.9]} 50... g6 {[%clk 0:00:17.3]} 51. fxg6
{[%clk 0:02:12.2]} 51... Rxg6+ {[%clk 0:00:18.3]} 52. Kf5 {[%clk 0:02:14.1]}
52... Rb6 {[%clk 0:00:19.4]} 53. Ke4 {[%clk 0:02:14.6]} 53... Rb4+ {[%clk
0:00:20]} 54. Kd3 {[%clk 0:02:14.8]} 54... Rb6 {[%clk 0:00:20.8]} 55. Kd4 {[%clk
0:02:14.8]} 55... Kc2 {[%clk 0:00:20.8]} 56. Kc4 {[%clk 0:02:15]} 56... Rc6+
{[%clk 0:00:20.2]} 57. Kb4 {[%clk 0:02:16]} 57... Kb2 {[%clk 0:00:20]} 58. a4
{[%clk 0:02:17]} 58... Rh6 {[%clk 0:00:18.5]} 59. Rd5 {[%clk 0:02:16.4]} 59...
Rc6 {[%clk 0:00:12.7]} 60. Rd2+ {[%clk 0:02:16.4]} 60... Kc1 {[%clk 0:00:13]}
61. Rg2 {[%clk 0:02:18.3]} 61... Re6 {[%clk 0:00:10.3]} 62. Ka5 {[%clk
0:02:19.1]} 62... Kb1 {[%clk 0:00:11.5]} 63. Rh2 {[%clk 0:02:19.7]} 63... Ka1
{[%clk 0:00:12.2]} 64. Rh4 {[%clk 0:02:19.3]} 64... Ka2 {[%clk 0:00:12.4]} 65.
Rh3 {[%clk 0:02:19.3]} 65... Kb2 {[%clk 0:00:12.9]} 66. Kb4 {[%clk 0:02:20.1]}
66... Re4+ {[%clk 0:00:12.8]} 67. Ka5 {[%clk 0:02:21.4]} 67... Re6 {[%clk
0:00:14.2]} 68. Rd3 {[%clk 0:02:21.4]} 68... Ka2 {[%clk 0:00:15]} 69. Rd7 {[%clk
0:02:20.6]} 69... Ka3 {[%clk 0:00:13.9]} 70. Rd3+ {[%clk 0:02:21]} 70... Kb2
{[%clk 0:00:14.4]} 71. Kb4 {[%clk 0:02:21.8]} 71... Re4+ {[%clk 0:00:14.8]} 72.
Ka5 {[%clk 0:02:21.5]} 72... Re6 {[%clk 0:00:15.7]} 73. Rd4 {[%clk 0:02:22.4]}
73... Kb3 {[%clk 0:00:15.4]} 74. Rd5 {[%clk 0:02:23.4]} 74... Ka3 {[%clk
0:00:15.2]} 75. Rf5 {[%clk 0:02:23]} 75... Kb3 {[%clk 0:00:16]} 76. Rf3+ {[%clk
0:02:23.1]} 76... Kb2 {[%clk 0:00:16.7]} 77. Rf2+ {[%clk 0:02:21.4]} 77... Kb3
{[%clk 0:00:17.3]} 78. Rf4 {[%clk 0:02:21.4]} 78... Ka3 {[%clk 0:00:16.9]} 79.
Rf3+ {[%clk 0:02:21.7]} 79... Kb2 {[%clk 0:00:17.8]} 80. Rh3 {[%clk 0:02:23.1]}
80... Ka2 {[%clk 0:00:17.6]} 81. Kb4 {[%clk 0:02:24]} 81... Re4+ {[%clk
0:00:17.4]} 82. Ka5 {[%clk 0:02:25.1]} 82... Re6 {[%clk 0:00:17.9]} 83. Rh2+
{[%clk 0:02:25.4]} 83... Kb3 {[%clk 0:00:18]} 84. Rh3+ {[%clk 0:02:26.5]} 84...
Kb2 {[%clk 0:00:18.7]} 85. Rf3 {[%clk 0:02:25.2]} 85... Ka2 {[%clk 0:00:19.3]}
86. Rf8 {[%clk 0:02:26.7]} 86... Ka3 {[%clk 0:00:19]} 87. Rf5 {[%clk 0:02:26.9]}
87... Kb3 {[%clk 0:00:19.5]} 88. Rc5 {[%clk 0:02:27.7]} 88... Ka3 {[%clk
0:00:19.1]} 89. Rc3+ {[%clk 0:02:28.2]} 89... Kb2 {[%clk 0:00:20]} 90. Kb4
{[%clk 0:02:28.8]} 90... a5+ {[%clk 0:00:17.1]} 91. Kxa5 {[%clk 0:02:23.7]}
91... Kxc3 {[%clk 0:00:16.8]} 92. Kb5 {[%clk 0:02:24.7]} 92... Re5+ {[%clk
0:00:13.4]} 93. Kb6 {[%clk 0:02:25.1]} 93... Kb4 {[%clk 0:00:14.3]} 94. a5
{[%clk 0:02:25.8]} 94... Rxa5 {[%clk 0:00:14.8]} 95. Kb7 {[%clk 0:02:27.6]}
95... Rf5 {[%clk 0:00:15]} 96. Ka7 {[%clk 0:02:28.3]} 96... Rc5 {[%clk
0:00:15.3]} 97. Kb7 {[%clk 0:02:30.2]} 97... Kb5 {[%clk 0:00:15.9]} 98. Ka7
{[%clk 0:02:30.8]} 98... Rc7+ {[%clk 0:00:16.6]} 99. Kb8 {[%clk 0:02:31.5]}
99... Kb6 {[%clk 0:00:17.6]} 100. Ka8 {[%clk 0:02:31.8]} 100... Rc8# {[%clk
0:00:18.8]} 0-1

[Event "*** Titled Tuesday 3|2 Blitz"]
[Site "Chess.com"]
[Date "2017.06.06"]
[Round "2"]
[White "Setne007"]
[Black "FearlessKing64"]
[Result "1-0"]
[WhiteElo "2061"]
[BlackElo "2140"]
[TimeControl "180+2"]
[EndTime "14:14:58 PDT"]
[Termination "Setne007 won by resignation"]

1. d4 {[%clk 0:03:02]} 1... Nf6 {[%clk 0:03:00.4]} 2. Bf4 {[%clk 0:03:02.6]}
2... d5 {[%clk 0:03:00.6]} 3. e3 {[%clk 0:03:01.5]} 3... e6 {[%clk 0:03:00.9]}
4. Nf3 {[%clk 0:03:01.3]} 4... Bd6 {[%clk 0:02:59.6]} 5. c3 {[%clk 0:03:01.8]}
5... O-O {[%clk 0:02:55.4]} 6. Nbd2 {[%clk 0:02:59]} 6... c5 {[%clk 0:02:47.3]}
7. Bd3 {[%clk 0:03:00.3]} 7... Nc6 {[%clk 0:02:43.5]} 8. Bg3 {[%clk 0:02:49.4]}
8... Qe7 {[%clk 0:02:30.4]} 9. Ne5 {[%clk 0:02:47.5]} 9... Bxe5 {[%clk
0:02:12.3]} 10. dxe5 {[%clk 0:02:46.2]} 10... Nd7 {[%clk 0:02:12.7]} 11. Nf3
{[%clk 0:02:12.5]} 11... f5 {[%clk 0:02:06]} 12. Bh4 {[%clk 0:01:48.4]} 12...
Qe8 {[%clk 0:01:58.3]} 13. Bg3 {[%clk 0:01:49.1]} 13... c4 {[%clk 0:01:47.3]}
14. Bc2 {[%clk 0:01:49.4]} 14... b5 {[%clk 0:01:43.3]} 15. a3 {[%clk 0:01:48.1]}
15... Bb7 {[%clk 0:01:34.8]} 16. h4 {[%clk 0:01:47]} 16... a5 {[%clk 0:01:28.5]}
17. h5 {[%clk 0:01:46.1]} 17... b4 {[%clk 0:01:12.2]} 18. a4 {[%clk 0:01:45.8]}
18... Nc5 {[%clk 0:01:04.9]} 19. h6 {[%clk 0:01:38.2]} 19... g6 {[%clk
0:01:06.2]} 20. Nd4 {[%clk 0:01:35.1]} 20... Ne4 {[%clk 0:00:59.5]} 21. Bf4
{[%clk 0:01:35.6]} 21... g5 {[%clk 0:00:56.9]} 22. Bh2 {[%clk 0:01:29]} 22...
bxc3 {[%clk 0:00:28.5]} 23. Bxe4 {[%clk 0:01:15]} 23... cxb2 {[%clk 0:00:29]}
24. Rb1 {[%clk 0:01:07]} 24... fxe4 {[%clk 0:00:28.9]} 25. Rxb2 {[%clk 0:01:05]}
25... Nb4 {[%clk 0:00:29.2]} 26. O-O {[%clk 0:00:54.8]} 26... Bc6 {[%clk
0:00:30.3]} 27. f4 {[%clk 0:00:49.5]} 27... Bxa4 {[%clk 0:00:19.9]} 28. Qg4
{[%clk 0:00:48]} 28... Bd7 {[%clk 0:00:18.6]} 29. Rbf2 {[%clk 0:00:28]} 29...
Nd3 {[%clk 0:00:18.5]} 30. Ra2 {[%clk 0:00:22.6]} 30... a4 {[%clk 0:00:18.3]}
31. Qxg5+ {[%clk 0:00:18.2]} 31... Qg6 {[%clk 0:00:18.4]} 32. Qe7 {[%clk
0:00:17.9]} 32... Rf7 {[%clk 0:00:19.5]} 33. Qd6 {[%clk 0:00:18]} 33... Kh8
{[%clk 0:00:16]} 34. f5 {[%clk 0:00:13.4]} 34... exf5 {[%clk 0:00:13.9]} 35. e6
{[%clk 0:00:14.5]} 35... Rg8 {[%clk 0:00:12.2]} 36. g3 {[%clk 0:00:11]} 36...
Be8 {[%clk 0:00:08.6]} 37. Kh1 {[%clk 0:00:05.3]} 37... Rf6 {[%clk 0:00:09.7]}
38. Qe7 {[%clk 0:00:03.4]} 38... Qxh6 {[%clk 0:00:05.9]} 39. Rf4 {[%clk
0:00:02.7]} 39... Qg6 {[%clk 0:00:06.8]} 40. Rh4 {[%clk 0:00:03.1]} 40... Qg7
{[%clk 0:00:07.7]} 41. Qd6 {[%clk 0:00:02.3]} 41... Nf2+ {[%clk 0:00:07.7]} 42.
Kg2 {[%clk 0:00:02.8]} 42... Ng4 {[%clk 0:00:08.3]} 43. Re2 {[%clk 0:00:02.6]}
43... f4 {[%clk 0:00:08.3]} 44. exf4 {[%clk 0:00:02.7]} 44... e3 {[%clk
0:00:08.8]} 45. f5 {[%clk 0:00:02.1]} 45... c3 {[%clk 0:00:05.8]} 46. Nf3 {[%clk
0:00:03.1]} 46... c2 {[%clk 0:00:06.8]} 47. Rxc2 {[%clk 0:00:04.2]} 47... e2
{[%clk 0:00:08.3]} 48. Rxe2 {[%clk 0:00:05.5]} 48... Rxf5 {[%clk 0:00:09.8]} 49.
Ne5 {[%clk 0:00:05.7]} 49... Nxe5 {[%clk 0:00:10.4]} 50. Rxe5 {[%clk 0:00:05.9]}
50... Rg5 {[%clk 0:00:11.9]} 51. Rxg5 {[%clk 0:00:06.5]} 51... Qxg5 {[%clk
0:00:13.5]} 52. Rf4 {[%clk 0:00:07.2]} 52... Qg7 {[%clk 0:00:12.4]} 53. Qxd5
{[%clk 0:00:07.9]} 53... a3 {[%clk 0:00:13.3]} 54. Bg1 {[%clk 0:00:08.4]} 54...
Rf8 {[%clk 0:00:12.5]} 55. Bd4 {[%clk 0:00:09.7]} 55... Rxf4 {[%clk 0:00:13.4]}
56. Bxg7+ {[%clk 0:00:10.4]} 56... Kxg7 {[%clk 0:00:15.3]} 57. Qg5+ {[%clk
0:00:11.2]} 57... Bg6 {[%clk 0:00:15.4]} 58. Qxf4 {[%clk 0:00:12.5]} 58... a2
{[%clk 0:00:16.7]} 59. Qa4 {[%clk 0:00:13.8]} 59... Bb1 {[%clk 0:00:17.4]} 60.
Qa3 {[%clk 0:00:14.9]} 60... Kf6 {[%clk 0:00:18.7]} 61. Qb2+ {[%clk 0:00:16.1]}
61... Kxe6 {[%clk 0:00:20]} 62. Kf3 {[%clk 0:00:17.4]} 62... Kf7 {[%clk
0:00:19.9]} 63. Kf4 {[%clk 0:00:18.8]} 63... Kg6 {[%clk 0:00:21.4]} 64. g4
{[%clk 0:00:19.7]} 64... h6 {[%clk 0:00:22.8]} 65. Qb6+ {[%clk 0:00:19.2]} 65...
Kg7 {[%clk 0:00:23.9]} 66. Qa5 {[%clk 0:00:20.2]} 66... Kg6 {[%clk 0:00:24.2]}
67. Qb6+ {[%clk 0:00:21.3]} 67... Kg7 {[%clk 0:00:25.4]} 68. Qa7+ {[%clk
0:00:21.7]} 68... Kg6 {[%clk 0:00:25.6]} 69. Qa6+ {[%clk 0:00:21.8]} 69... Kg7
{[%clk 0:00:26.8]} 70. Qa5 {[%clk 0:00:22.3]} 70... Kg6 {[%clk 0:00:27.1]} 71.
Qc3 {[%clk 0:00:23.3]} 71... Kf7 {[%clk 0:00:26.4]} 72. Ke5 {[%clk 0:00:24.1]}
72... Kg6 {[%clk 0:00:26.8]} 73. Kf4 {[%clk 0:00:25]} 73... Kf7 {[%clk
0:00:27.3]} 74. Qe5 {[%clk 0:00:26.1]} 74... Kg6 {[%clk 0:00:28.5]} 75. Qe6+
{[%clk 0:00:25.8]} 75... Kg7 {[%clk 0:00:28.6]} 76. Qa6 {[%clk 0:00:26.7]} 76...
Kf7 {[%clk 0:00:29.1]} 77. Kg3 {[%clk 0:00:28]} 77... Kg7 {[%clk 0:00:30.1]} 78.
Kh4 {[%clk 0:00:29.3]} 78... Kh7 {[%clk 0:00:29]} 79. Kh5 {[%clk 0:00:29.9]}
79... Kg7 {[%clk 0:00:27.4]} 80. Qxh6+ {[%clk 0:00:30.1]} 80... Kf7 {[%clk
0:00:28.9]} 81. Qa6 {[%clk 0:00:31.5]} 1-0

[Event "*** Titled Tuesday 3|2 Blitz"]
[Site "Chess.com"]
[Date "2017.06.06"]
[Round "2"]
[White "jcibarra"]
[Black "x-3738459472"]
[Result "0-1"]
[WhiteElo "2642"]
[BlackElo "2459"]
[TimeControl "180+2"]
[EndTime "14:15:17 PDT"]
[Termination "x-3738459472 won by resignation"]

1. e4 {[%clk 0:03:02]} 1... c5 {[%clk 0:02:59.5]} 2. Nf3 {[%clk 0:03:03.2]} 2...
Nc6 {[%clk 0:03:00.5]} 3. d4 {[%clk 0:03:04.3]} 3... cxd4 {[%clk 0:03:01.6]} 4.
Nxd4 {[%clk 0:03:06.2]} 4... e5 {[%clk 0:03:03]} 5. Nb5 {[%clk 0:03:06.7]} 5...
d6 {[%clk 0:03:03.4]} 6. N1c3 {[%clk 0:03:07.9]} 6... a6 {[%clk 0:03:04.3]} 7.
Na3 {[%clk 0:03:09.1]} 7... b5 {[%clk 0:03:06.2]} 8. Nd5 {[%clk 0:03:10]} 8...
Nge7 {[%clk 0:03:07.7]} 9. Bg5 {[%clk 0:03:11.3]} 9... h6 {[%clk 0:03:06.1]} 10.
Bxb5 {[%clk 0:03:10.7]} 10... hxg5 {[%clk 0:02:54.6]} 11. Nxe7 {[%clk
0:03:10.3]} 11... axb5 {[%clk 0:02:55.1]} 12. Nxc6 {[%clk 0:03:11]} 12... Qd7
{[%clk 0:02:56.2]} 13. Nb4 {[%clk 0:03:07.3]} 13... Ra4 {[%clk 0:02:57.4]} 14.
c3 {[%clk 0:03:00.7]} 14... d5 {[%clk 0:02:57.9]} 15. exd5 {[%clk 0:02:35.5]}
15... Rxb4 {[%clk 0:02:39.2]} 16. cxb4 {[%clk 0:02:35.5]} 16... Bxb4+ {[%clk
0:02:41.1]} 17. Kf1 {[%clk 0:02:35.3]} 17... Bb7 {[%clk 0:02:32.7]} 18. Qb3
{[%clk 0:02:15.6]} 18... Bxa3 {[%clk 0:02:22.8]} 19. bxa3 {[%clk 0:02:14.9]}
19... Bxd5 {[%clk 0:02:19.6]} 20. Qb4 {[%clk 0:02:14.4]} 20... Rh4 {[%clk
0:02:14.8]} 21. Qc3 {[%clk 0:02:01.2]} 21... Rc4 {[%clk 0:02:04.4]} 22. Qxe5+
{[%clk 0:02:00.2]} 22... Kf8 {[%clk 0:02:05.1]} 23. Rd1 {[%clk 0:01:14.7]} 23...
Rc5 {[%clk 0:01:55.2]} 24. Qb8+ {[%clk 0:01:01.4]} 24... Ke7 {[%clk 0:01:55.9]}
25. Qe5+ {[%clk 0:01:01.1]} 25... Kf8 {[%clk 0:01:55.4]} 26. Qd4 {[%clk
0:00:55.2]} 26... Bc4+ {[%clk 0:01:51.1]} 27. Kg1 {[%clk 0:00:42.7]} 27... Rd5
{[%clk 0:01:51.8]} 28. Qxd5 {[%clk 0:00:38.6]} 28... Bxd5 {[%clk 0:01:51.5]} 29.
h4 {[%clk 0:00:33.9]} 29... Qf5 {[%clk 0:01:34]} 30. hxg5 {[%clk 0:00:30.5]}
30... Qxg5 {[%clk 0:01:34.7]} 31. Rh2 {[%clk 0:00:27]} 31... g6 {[%clk
0:01:30.5]} 32. Re1 {[%clk 0:00:25.6]} 32... Kg7 {[%clk 0:01:29.9]} 33. Re3
{[%clk 0:00:26.3]} 33... Bxa2 {[%clk 0:01:29.8]} 34. Rhh3 {[%clk 0:00:27.3]}
34... Be6 {[%clk 0:01:28.9]} 35. Rhg3 {[%clk 0:00:28.4]} 35... Qd5 {[%clk
0:01:29.7]} 36. Rd3 {[%clk 0:00:28.6]} 36... Qa2 {[%clk 0:01:29]} 37. Rc3 {[%clk
0:00:29.9]} 37... Bc4 {[%clk 0:01:28.6]} 38. Rce3 {[%clk 0:00:30.8]} 38... Bd5
{[%clk 0:01:28.7]} 39. Rd3 {[%clk 0:00:31.9]} 39... Qb1+ {[%clk 0:01:27.1]} 40.
Kh2 {[%clk 0:00:32.5]} 40... Bc4 {[%clk 0:01:27.5]} 41. Rc3 {[%clk 0:00:33.1]}
41... Qb2 {[%clk 0:01:26.8]} 42. Rcf3 {[%clk 0:00:33.4]} 42... Bd5 {[%clk
0:01:27.3]} 43. Rf4 {[%clk 0:00:34.2]} 43... Qe5 {[%clk 0:01:26.6]} 44. Rfg4
{[%clk 0:00:34.5]} 44... Be6 {[%clk 0:01:14.5]} 45. Rb4 {[%clk 0:00:34.9]} 45...
Bc4 {[%clk 0:01:11.8]} 46. Rb1 {[%clk 0:00:30.9]} 46... Qf5 {[%clk 0:01:08.1]}
47. Rb2 {[%clk 0:00:29.3]} 47... Qh5+ {[%clk 0:01:06.6]} 48. Kg1 {[%clk
0:00:29.9]} 48... Qd1+ {[%clk 0:01:01.4]} 49. Kh2 {[%clk 0:00:31.3]} 49... f5
{[%clk 0:01:00.1]} 50. Rc3 {[%clk 0:00:29.2]} 50... Qd4 {[%clk 0:00:56.1]} 51.
Rbc2 {[%clk 0:00:27.6]} 51... Qe5+ {[%clk 0:00:54.3]} 52. Kg1 {[%clk 0:00:26.6]}
52... Bd5 {[%clk 0:00:52.1]} 53. Re3 {[%clk 0:00:25.5]} 53... Qd4 {[%clk
0:00:51.6]} 54. Rc7+ {[%clk 0:00:23.6]} 54... Kf6 {[%clk 0:00:51.9]} 55. Rd7
{[%clk 0:00:22.4]} 55... f4 {[%clk 0:00:50.2]} 56. Rd6+ {[%clk 0:00:21.2]} 56...
Kg7 {[%clk 0:00:47.1]} 57. Re7+ {[%clk 0:00:19.8]} 57... Kh6 {[%clk 0:00:47.2]}
58. Re8 {[%clk 0:00:18.5]} 58... Qd1+ {[%clk 0:00:47]} 59. Kh2 {[%clk
0:00:19.9]} 59... Qh5+ {[%clk 0:00:31.5]} 60. Kg1 {[%clk 0:00:20.8]} 60... Qg5
{[%clk 0:00:31.6]} 61. f3 {[%clk 0:00:21.9]} 61... Bxf3 {[%clk 0:00:29.4]} 62.
Rd2 {[%clk 0:00:22.9]} 62... Bc6 {[%clk 0:00:27.7]} 63. Re6 {[%clk 0:00:19.7]}
63... f3 {[%clk 0:00:27.4]} 64. Rc2 {[%clk 0:00:18.5]} 64... Bd5 {[%clk
0:00:27]} 65. Re1 {[%clk 0:00:16.6]} 65... fxg2 {[%clk 0:00:27.2]} 66. Rc3
{[%clk 0:00:13.9]} 66... Qh4 {[%clk 0:00:27.3]} 67. Rcc1 {[%clk 0:00:12.6]}
67... Qh1+ {[%clk 0:00:20.9]} 68. Kf2 {[%clk 0:00:13.8]} 68... Qh2 {[%clk
0:00:20.8]} 69. Rg1 {[%clk 0:00:14.1]} 69... Qf4+ {[%clk 0:00:21.2]} 70. Ke2
{[%clk 0:00:15.7]} 70... Qf3+ {[%clk 0:00:22.1]} 71. Kd2 {[%clk 0:00:16.9]}
71... Be4 {[%clk 0:00:23.2]} 72. Ra1 {[%clk 0:00:07.1]} 72... Qd3+ {[%clk
0:00:23.5]} 73. Ke1 {[%clk 0:00:09]} 73... Qe3+ {[%clk 0:00:24.4]} 0-1